fUST/lending_fUST_20240212
["ID","MTS","AMOUNT","RATE_DAILY","PERIOD"]
[313762384,1707685848582,-6051.74,0.00021157,2]
[313762385,1707685848591,-2143.43,0.00021157,2]
[313762386,1707685848600,-2247.75,0.00021157,2]
[313762387,1707685848609,-666.71,0.00021157,2]
[313762388,1707685848618,-500.0,0.00021158,2]
[313762389,1707685848627,-511.4,0.00021158,2]
[313762390,1707685848636,-500.0,0.00021158,2]
[313762391,1707685848645,-500.0,0.00021158,2]
[313762392,1707685848655,-512.17,0.00021159,2]
[313762393,1707685848664,-577.33,0.00021159,2]
[313762394,1707685848674,-151.0,0.00021205,2]
[313762395,1707685848684,-163.24446479,0.00021354,2]
[313762396,1707685848692,-2862.74,0.00021354,2]
[313762397,1707685848701,-2104.75,0.00021354,2]
[313762398,1707685848710,-500.0,0.00021354,2]
[313762399,1707685848720,-7626.57,0.00021358,2]
[313762400,1707685848729,-500.0,0.00021359,2]
[313762401,1707685848738,-500.0,0.00021359,2]
[313762402,1707685848747,-500.0,0.00021359,2]
[313762403,1707685848756,-500.0,0.00021359,2]
[313762404,1707685848766,-1393.67,0.00021359,2]
[313762405,1707685848775,-500.0,0.0002136,2]
[313762406,1707685848784,-2094.17,0.0002136,2]
[313762407,1707685848792,-500.0,0.0002136,2]
[313762408,1707685848801,-648.36,0.0002136,2]
[313762409,1707685848810,-662.95,0.0002136,2]
[313762410,1707685848820,-500.0,0.0002136,2]
[313762411,1707685848829,-366.85,0.00021431,2]
[313762412,1707685848838,-581.17,0.00021431,2]
[313762413,1707685848848,-6051.74,0.00021431,2]
[313762414,1707685848857,-2143.43,0.00021431,2]
[313762415,1707685848866,-2247.75,0.00021431,2]
[313762416,1707685848875,-666.71,0.00021431,2]
[313762417,1707685848884,-500.0,0.00021432,2]
[313762418,1707685848894,-524.16,0.00021432,2]
[313762419,1707685848905,-500.0,0.00021432,2]
[313762420,1707685848914,-512.17,0.00021433,2]
[313762421,1707685848923,-577.33,0.00021433,2]
[313762422,1707685848934,-646.82216945,0.00021515,2]
[313762423,1707685848944,-1000.0,0.00021554,2]
[313762424,1707685848954,-1000.0,0.00021554,2]
[313762425,1707685848963,-1000.0,0.00021554,2]
[313762426,1707685848973,-1000.0,0.00021554,2]
[313762427,1707685848982,-151.0,0.0002159,2]
[313762428,1707685848991,-2862.74,0.00021628,2]
[313762429,1707685849000,-2104.75,0.00021628,2]
[313762430,1707685849013,-500.0,0.00021628,2]
[313762431,1707685849022,-7626.57,0.00021632,2]
[313762432,1707685849037,-500.0,0.00021633,2]
[313762433,1707685849052,-500.0,0.00021633,2]
[313762434,1707685849061,-500.0,0.00021633,2]
[313762435,1707685849071,-500.0,0.00021633,2]
[313762436,1707685849080,-1393.67,0.00021633,2]
[313762437,1707685849090,-500.0,0.00021634,2]
[313762438,1707685849104,-2094.17,0.00021634,2]
[313762439,1707685849119,-500.0,0.00021634,2]
[313762440,1707685849128,-662.95,0.00021634,2]
[313762441,1707685849137,-500.0,0.00021634,2]
[313762442,1707685849147,-200.0,0.00021698,2]
[313762443,1707685849158,-200.0,0.00021698,2]
[313762444,1707685849167,-200.0,0.00021698,2]
[313762445,1707685849177,-200.0,0.00021698,2]
[313762446,1707685849187,-200.0,0.00021698,2]
[313762447,1707685849196,-200.0,0.00021698,2]
[313762448,1707685849205,-200.0,0.00021698,2]
[313762449,1707685849214,-200.0,0.00021698,2]
[313762450,1707685849223,-200.0,0.00021698,2]
[313762451,1707685849232,-200.0,0.00021698,2]
[313762452,1707685849241,-581.17,0.00021705,2]
[313762453,1707685849250,-6051.74,0.00021705,2]
[313762454,1707685849259,-2143.43,0.00021705,2]
[313762455,1707685849269,-2247.75,0.00021705,2]
[313762456,1707685849278,-666.71,0.00021705,2]
[313762457,1707685849287,-500.0,0.00021706,2]
[313762458,1707685849296,-500.0,0.00021706,2]
[313762459,1707685849305,-512.17,0.00021707,2]
[313762460,1707685849314,-577.33,0.00021707,2]
[313762461,1707685849421,-200.0,0.00021765,7]
[313762462,1707685849431,-2862.74,0.00021902,2]
[313762463,1707685849440,-2104.75,0.00021902,2]
[313762464,1707685849449,-500.0,0.00021902,2]
[313762465,1707685849458,-7626.57,0.00021906,2]
[313762466,1707685849467,-500.0,0.00021907,2]
[313762467,1707685849476,-500.0,0.00021907,2]
[313762468,1707685849485,-500.0,0.00021907,2]
[313762469,1707685849494,-500.0,0.00021907,2]
[313762470,1707685849503,-1393.67,0.00021907,2]
[313762471,1707685849512,-500.0,0.00021908,2]
[313762472,1707685849522,-2094.17,0.00021908,2]
[313762473,1707685849531,-500.0,0.00021908,2]
[313762474,1707685849540,-662.95,0.00021908,2]
[313762475,1707685849548,-500.0,0.00021908,2]
[313762476,1707685849558,-500.0,0.00021917,2]
[313762477,1707685849567,-448.71128351,0.00021917,2]
[313762478,1707685849576,-166.666666,0.00021918,2]
[313762479,1707685849585,-151.0,0.00021974,2]
[313762480,1707685849594,-500.0,0.00021978,2]
[313762481,1707685849604,-581.17,0.00021979,2]
[313762482,1707685849613,-6051.74,0.00021979,2]
[313762483,1707685849622,-2143.43,0.00021979,2]
[313762484,1707685849631,-2247.75,0.00021979,2]
[313762485,1707685849641,-666.71,0.00021979,2]
[313762486,1707685849650,-500.0,0.0002198,2]
[313762487,1707685849659,-471.6681853,0.0002198,2]
[313762488,1707685849668,-512.17,0.00021981,2]
[313762489,1707685849677,-577.33,0.00021981,2]
[313762490,1707685849686,-2501.0,0.00022,2]
[313762491,1707685849695,-427.57588222,0.00022,2]
[313762492,1707685849704,-155.240501,0.00022,2]
[313762493,1707685849713,-326.68140324,0.00022,2]
[313762494,1707685849722,-11881.45540246,0.00022,2]
[313762495,1707685849731,-286.87,0.00022,2]
[313762496,1707685849741,-331.32365541,0.00022,4]
[313762497,1707685849750,-849.18,0.00022,2]
[313762498,1707685849759,-1509.77,0.00022,2]
[313762499,1707685849767,-1000.0,0.00022,22]
[313762500,1707685849776,-199.99,0.00022,2]
[313762501,1707685849785,-257.69,0.00022,2]
[313762502,1707685849794,-579.0,0.000221,2]
[313762503,1707685849803,-2862.74,0.00022176,2]
[313762504,1707685849812,-2104.75,0.00022176,2]
[313762505,1707685849820,-500.0,0.00022176,2]
[313762506,1707685849829,-500.0,0.00022179,2]
[313762507,1707685849837,-433.79952593,0.00022179,2]
[313762508,1707685849846,-500.0,0.00022179,2]
[313762509,1707685849855,-400.4701801,0.00022179,2]
[313762510,1707685849864,-210.1349138,0.00022179,2]
[313762511,1707685849872,-453.19276149,0.00022179,2]
[313762512,1707685849881,-500.0,0.00022179,2]
[313762513,1707685849890,-500.0,0.00022179,2]
[313762514,1707685849898,-500.0,0.00022179,2]
[313762515,1707685849907,-500.0,0.00022179,2]
[313762516,1707685849916,-500.0,0.00022179,2]
[313762517,1707685849925,-500.0,0.00022179,2]
[313762518,1707685849933,-500.0,0.00022179,2]
[313762519,1707685849942,-500.0,0.00022179,2]
[313762520,1707685849951,-500.0,0.00022179,2]
[313762521,1707685849959,-500.0,0.00022179,2]
[313762522,1707685849968,-500.0,0.00022179,2]
[313762523,1707685849977,-500.0,0.00022179,2]
[313762524,1707685849986,-500.0,0.00022179,2]
[313762525,1707685849995,-500.0,0.00022179,2]
[313762526,1707685850004,-500.0,0.00022179,2]
[313762527,1707685850012,-500.0,0.00022179,2]
[313762528,1707685850024,-500.0,0.00022179,2]
[313762529,1707685850033,-500.0,0.00022179,2]
[313762530,1707685850043,-500.0,0.00022179,2]
[313762531,1707685850051,-500.0,0.00022179,2]
[313762532,1707685850060,-500.0,0.00022179,2]
[313762533,1707685850069,-499.34738052,0.00022179,2]
[313762534,1707685850078,-500.0,0.00022179,2]
[313762535,1707685850087,-500.0,0.00022179,2]
[313762536,1707685850096,-496.3579031,0.00022179,2]
[313762537,1707685850282,-3.6420969,0.00022179,2]
[313762538,1707685850292,-500.0,0.00022179,2]
[313762539,1707685850301,-500.0,0.00022179,2]
[313762540,1707685850310,-500.0,0.00022179,2]
[313762541,1707685850320,-500.0,0.00022179,2]
[313762542,1707685850329,-500.0,0.00022179,2]
[313762543,1707685850339,-500.0,0.00022179,2]
[313762544,1707685850348,-315.75161857,0.00022179,2]
[313762545,1707685850358,-500.0,0.00022179,2]
[313762546,1707685850368,-178.80595251,0.00022179,2]
[313762547,1707685850377,-500.0,0.00022179,2]
[313762548,1707685850387,-308.80033202,0.00022179,2]
[313762644,1707687032535,-470.57044486,0.00019786,2]
[313762829,1707687038632,-2349.17476601,0.00019786,2]
[313762831,1707687038641,-391.0584287,0.00019808,2]
[313762833,1707687038650,-169.8049921,0.00019886,2]
[313762835,1707687038659,-1120.69,0.00019973,3]
[313762837,1707687038668,-398.84217949,0.00019982,2]
[313762838,1707687038680,-1390.36782051,0.00019982,2]
[313762839,1707687038690,-1315.47,0.00019982,2]
[313762840,1707687038699,-427.93536845,0.00019982,2]
[313762841,1707687038708,-180.07774973,0.00019983,2]
[313762842,1707687038720,-57457.72521635,0.00019983,2]
[313762843,1707687038750,-5814.22303121,0.00019983,2]
[313762850,1707687041787,-1596.79825062,0.00019983,2]
[313762851,1707687041799,-1002.04205956,0.00019983,2]
[313762852,1707687041810,-2289.10309562,0.00019983,2]
[313762859,1707687043612,-2056.9838968,0.00019983,2]
[313763137,1707688234383,-330.75753837,0.0001886,2]
[313763138,1707688234398,-243.95627821,0.00018898,2]
[313763139,1707688234406,-4009.20621642,0.00018899,2]
[313763140,1707688234418,-915.83813876,0.00018899,2]
[313763167,1707688237906,-243.95627821,0.00018859,2]
[313763169,1707688237915,-1095.16802344,0.00018899,2]
[313763172,1707688237939,-1536.52968994,0.00018899,2]
[313763174,1707688237948,-260.70561913,0.000189,2]
[313763176,1707688237957,-1137.06533277,0.000199,2]
[313763178,1707688237966,-1121.68,0.00019971,3]
[313763180,1707688237976,-157.49139385,0.00019979,2]
[313763182,1707688237985,-200.18695145,0.00019979,2]
[313763184,1707688237994,-289.21493152,0.0001998,2]
[313763186,1707688238003,-500.0,0.0001998,2]
[313763188,1707688238013,-500.0,0.0001998,2]
[313763190,1707688238022,-500.0,0.0001998,2]
[313763192,1707688238031,-500.0,0.0001998,2]
[313763195,1707688238041,-500.0,0.0001998,2]
[313763196,1707688238051,-500.0,0.0001998,2]
[313763199,1707688238061,-500.0,0.0001998,2]
[313763201,1707688238070,-500.0,0.0001998,2]
[313763203,1707688238078,-500.0,0.0001998,2]
[313763205,1707688238087,-267.8649651,0.0001998,2]
[313763207,1707688238096,-500.0,0.0001998,2]
[313763209,1707688238105,-500.0,0.0001998,2]
[313763211,1707688238114,-517.52,0.0001998,2]
[313763212,1707688238122,-500.0,0.0001998,2]
[313763214,1707688238133,-500.0,0.0001998,2]
[313763216,1707688238142,-500.0,0.0001998,2]
[313763218,1707688238150,-500.0,0.0001998,2]
[313763220,1707688238160,-500.0,0.0001998,2]
[313763222,1707688238169,-941.11292846,0.0001998,2]
[313763225,1707688238180,-287.59707154,0.0001998,2]
[313763227,1707688238189,-500.0,0.0001998,2]
[313763229,1707688238198,-371.35946439,0.0001998,2]
[313763231,1707688238210,-128.64053561,0.0001998,2]
[313763233,1707688238219,-1890.74,0.0001998,2]
[313763235,1707688238228,-500.0,0.0001998,2]
[313763237,1707688238237,-500.0,0.0001998,2]
[313763239,1707688238246,-172.43451531,0.0001998,2]
[313763241,1707688238258,-335.61548469,0.0001998,2]
[313763243,1707688238266,-500.0,0.0001998,2]
[313763245,1707688238275,-500.0,0.0001998,2]
[313763247,1707688238285,-362.14016257,0.0001998,2]
[313763249,1707688238294,-468.46563507,0.0001998,2]
[313763251,1707688238305,-31.53436493,0.0001998,2]
[313763253,1707688238313,-309.26602282,0.0001998,2]
[313763255,1707688238324,-79.42993587,0.0001998,2]
[313763257,1707688238334,-500.0,0.0001998,2]
[313763259,1707688238343,-500.0,0.0001998,2]
[313763261,1707688238352,-500.0,0.0001998,2]
[313763263,1707688238361,-500.0,0.0001998,2]
[313763265,1707688238370,-500.0,0.0001998,2]
[313763267,1707688238379,-500.0,0.0001998,2]
[313763270,1707688238388,-500.0,0.0001998,2]
[313763272,1707688238397,-1676.97,0.0001998,2]
[313763274,1707688238406,-500.0,0.0001998,2]
[313763275,1707688238416,-500.0,0.0001998,2]
[313763277,1707688238425,-500.0,0.0001998,2]
[313763279,1707688238434,-518.5,0.0001998,2]
[313763281,1707688238443,-500.0,0.0001998,2]
[313763283,1707688238452,-500.0,0.0001998,2]
[313763285,1707688238462,-504.38773086,0.0001998,2]
[313763287,1707688238471,-5450.19,0.0001998,2]
[313763289,1707688238480,-500.0,0.0001998,2]
[313763292,1707688238489,-500.0,0.0001998,2]
[313763293,1707688238498,-500.0,0.0001998,2]
[313763295,1707688238507,-500.0,0.0001998,2]
[313763297,1707688238516,-502.81787563,0.0001998,2]
[313763300,1707688238525,-500.0,0.0001998,2]
[313763302,1707688238535,-500.0,0.0001998,2]
[313763304,1707688238544,-486.10388182,0.0001998,2]
[313763306,1707688238554,-2379.26,0.0001998,2]
[313763308,1707688238563,-500.0,0.0001998,2]
[313763310,1707688238571,-589.79615024,0.0001998,2]
[313763312,1707688238580,-500.0,0.0001998,2]
[313763313,1707688238591,-500.0,0.0001998,2]
[313763316,1707688238600,-522.91572915,0.0001998,2]
[313763317,1707688238609,-4034.49,0.0001998,2]
[313763319,1707688238618,-500.0,0.0001998,2]
[313763321,1707688238627,-500.0,0.0001998,2]
[313763323,1707688238636,-500.0,0.0001998,2]
[313763325,1707688238645,-500.0,0.0001998,2]
[313763327,1707688238654,-500.0,0.0001998,2]
[313763330,1707688238664,-500.0,0.0001998,2]
[313763332,1707688238673,-1859.28,0.0001998,2]
[313763334,1707688238682,-500.0,0.0001998,2]
[313763335,1707688238691,-603.81,0.0001998,2]
[313763337,1707688238701,-155.04031048,0.00019981,2]
[313763338,1707688238711,-155.17453603,0.00019981,2]
[313763339,1707688238724,-3755.69529023,0.00019981,2]
[313763340,1707688238733,-820.4174629,0.00019981,2]
[313763341,1707688238742,-235.56020887,0.00019981,2]
[313763342,1707688238751,-176.70010518,0.00019981,2]
[313763343,1707688238761,-309.72125088,0.00019981,2]
[313763344,1707688238772,-155.12462204,0.00019981,2]
[313763345,1707688238781,-1513.15613917,0.00019981,2]
[313763346,1707688238791,-47910.67813965,0.00019981,2]
[313763350,1707688241021,-500.0,0.0001998,2]
[313763351,1707688241030,-22539.39421005,0.00019981,2]
[313763413,1707688242909,-500.0,0.0001998,2]
[313763416,1707688242919,-1977.70913536,0.00019981,2]
[313763422,1707688242943,-8137.447054,0.00019981,2]
[313763458,1707688245744,-3415.73824291,0.00019981,2]
[313763460,1707688245753,-16219.26839726,0.00019981,2]
[313763461,1707688245802,-268.3650455,0.00019981,2]
[313763462,1707688245812,-171.19115676,0.00019981,2]
[313763463,1707688245821,-1068.5140919,0.00019981,2]
[313763464,1707688245830,-18955.04769253,0.00019981,2]
[313763465,1707688245840,-250.0,0.00019981,2]
[313763466,1707688245849,-1500.0,0.00019982,3]
[313763467,1707688245859,-37061.66416696,0.00019982,2]
[313763468,1707688245868,-500.0,0.00019982,2]
[313763469,1707688245877,-500.0,0.00019982,2]
[313763470,1707688245887,-500.0,0.00019982,2]
[313763471,1707688245897,-500.0,0.00019982,2]
[313763472,1707688245906,-495.64440709,0.00019982,2]
[313763473,1707688245915,-500.0,0.00019982,2]
[313763474,1707688245925,-465.37902182,0.00019982,2]
[313763475,1707688245934,-500.0,0.00019982,2]
[313763476,1707688245943,-500.0,0.00019982,2]
[313763477,1707688245953,-500.0,0.00019982,2]
[313763478,1707688245963,-500.0,0.00019982,2]
[313763479,1707688245972,-500.0,0.00019982,2]
[313763480,1707688245981,-500.0,0.00019982,2]
[313763481,1707688245990,-502.39045831,0.00019982,2]
[313763482,1707688245999,-500.0,0.00019982,2]
[313763483,1707688246010,-500.0,0.00019982,2]
[313763484,1707688246019,-150.0,0.00019982,2]
[313763485,1707688246029,-638.33,0.00019982,2]
[313763486,1707688246038,-506.84774836,0.00019982,2]
[313763487,1707688246047,-500.0,0.00019982,2]
[313763488,1707688246056,-500.0,0.00019982,2]
[313763489,1707688246065,-500.0,0.00019982,2]
[313763490,1707688246074,-500.0,0.00019982,2]
[313763491,1707688246084,-500.0,0.00019982,2]
[313763492,1707688246093,-508.45839767,0.00019982,2]
[313763493,1707688246102,-500.0,0.00019982,2]
[313763494,1707688246111,-500.0,0.00019982,2]
[313763495,1707688246120,-504.568419,0.00019982,2]
[313763496,1707688246129,-500.0,0.00019982,2]
[313763497,1707688246138,-500.0,0.00019982,2]
[313763498,1707688246147,-625.25473972,0.00019982,2]
[313763499,1707688246156,-500.0,0.00019982,2]
[313763500,1707688246165,-574.41025893,0.00019982,2]
[313763501,1707688246174,-500.0,0.00019982,2]
[313763502,1707688246183,-500.0,0.00019982,2]
[313763503,1707688246193,-521.92626203,0.00019982,2]
[313763504,1707688246202,-500.0,0.00019982,2]
[313763505,1707688246211,-500.0,0.00019982,2]
[313763506,1707688246220,-500.0,0.00019982,2]
[313763507,1707688246229,-645.69,0.00019982,2]
[313763508,1707688246238,-500.0,0.00019982,2]
[313763509,1707688246247,-500.0,0.00019982,2]
[313763510,1707688246256,-540.93346718,0.00019982,2]
[313763511,1707688246265,-500.0,0.00019982,2]
[313763512,1707688246274,-500.0,0.00019982,2]
[313763513,1707688246284,-500.0,0.00019982,2]
[313763514,1707688246293,-500.0,0.00019982,2]
[313763515,1707688246302,-500.0,0.00019982,2]
[313763516,1707688246311,-500.0,0.00019982,2]
[313763517,1707688246320,-500.0,0.00019982,2]
[313763518,1707688246329,-500.0,0.00019982,2]
[313763519,1707688246338,-505.43,0.00019982,2]
[313763520,1707688246347,-500.0,0.00019982,2]
[313763521,1707688246356,-500.0,0.00019982,2]
[313763522,1707688246364,-500.0,0.00019982,2]
[313763523,1707688246374,-501.18274261,0.00019982,2]
[313763524,1707688246384,-500.0,0.00019982,2]
[313763525,1707688246394,-289.51016998,0.00019982,2]
[313763526,1707688246403,-500.0,0.00019982,2]
[313763527,1707688246412,-500.0,0.00019982,2]
[313763528,1707688246421,-500.0,0.00019982,2]
[313763529,1707688246430,-500.0,0.00019982,2]
[313763530,1707688246439,-500.0,0.00019982,2]
[313763531,1707688246448,-500.0,0.00019982,2]
[313763532,1707688246457,-500.0,0.00019982,2]
[313763533,1707688246466,-1926.15,0.00019982,2]
[313763534,1707688246476,-628.23,0.00019982,2]
[313763535,1707688246485,-500.0,0.00019982,2]
[313763536,1707688246494,-500.0,0.00019982,2]
[313763537,1707688246503,-502.27959458,0.00019982,2]
[313763538,1707688246512,-500.0,0.00019982,2]
[313763539,1707688246521,-236.12882738,0.00019982,2]
[313763540,1707688246530,-500.0,0.00019982,2]
[313763541,1707688246540,-500.0,0.00019984,2]
[313763542,1707688246549,-500.0,0.00019984,2]
[313763543,1707688246558,-500.0,0.00019984,2]
[313763544,1707688246567,-500.0,0.00019984,2]
[313763545,1707688246576,-500.0,0.00019984,2]
[313763546,1707688246585,-500.0,0.00019984,2]
[313763547,1707688246595,-500.0,0.00019984,2]
[313763548,1707688246604,-500.0,0.00019984,2]
[313763549,1707688246613,-520.49261535,0.00019984,2]
[313763550,1707688246622,-500.0,0.00019984,2]
[313763551,1707688246631,-500.0,0.00019984,2]
[313763552,1707688246640,-500.0,0.00019984,2]
[313763553,1707688246649,-628.47416371,0.00019984,2]
[313763554,1707688246658,-500.0,0.00019984,2]
[313763555,1707688246667,-500.0,0.00019984,2]
[313763556,1707688246677,-500.0,0.00019984,2]
[313763557,1707688246686,-642.92,0.00019984,2]
[313763558,1707688246696,-500.0,0.00019984,2]
[313763559,1707688246705,-500.0,0.00019984,2]
[313763560,1707688246715,-500.0,0.00019984,2]
[313763561,1707688246727,-1000.0,0.00019984,2]
[313763562,1707688246737,-500.0,0.00019984,2]
[313763563,1707688246746,-500.0,0.00019984,2]
[313763564,1707688246755,-500.0,0.00019984,2]
[313763565,1707688246764,-500.0,0.00019984,2]
[313763566,1707688246774,-500.0,0.00019984,2]
[313763567,1707688246783,-500.0,0.00019984,2]
[313763568,1707688246793,-500.0,0.00019984,2]
[313763569,1707688246803,-500.0,0.00019986,2]
[313763570,1707688246812,-500.0,0.00019986,2]
[313763571,1707688246821,-500.0,0.00019986,2]
[313763572,1707688246831,-500.0,0.00019986,2]
[313763573,1707688246840,-508.75,0.00019986,2]
[313763574,1707688246849,-516.71777437,0.00019986,2]
[313763575,1707688246858,-209.21007188,0.00019986,2]
[313763576,1707688246867,-388.65401253,0.00019986,2]
[313763577,1707688246877,-500.0,0.00019986,2]
[313763578,1707688246886,-500.0,0.00019986,2]
[313763579,1707688246897,-500.0,0.00019986,2]
[313763580,1707688246906,-500.0,0.00019988,2]
[313763581,1707688246915,-500.0,0.00019988,2]
[313763582,1707688246925,-500.0,0.00019988,2]
[313763583,1707688246934,-164.67083156,0.00019988,2]
[313763584,1707688246945,-500.0,0.00019988,2]
[313763585,1707688246954,-319.03457619,0.00019988,2]
[313763586,1707688246963,-500.0,0.00019988,2]
[313763587,1707688246972,-500.0,0.00019988,2]
[313763588,1707688246981,-500.0,0.00019988,2]
[313763589,1707688246991,-499.37512809,0.00019988,2]
[313763590,1707688247000,-500.0,0.00019988,2]
[313763591,1707688247009,-500.0,0.00019988,2]
[313763592,1707688247017,-500.0,0.00019988,2]
[313763593,1707688247027,-500.0,0.00019988,2]
[313763594,1707688247036,-374.27691535,0.00019988,2]
[313763595,1707688247045,-503.27812944,0.00019988,2]
[313763596,1707688247054,-500.0,0.00019988,2]
[313763597,1707688247063,-500.0,0.00019988,2]
[313763598,1707688247073,-500.0,0.00019988,2]
[313763599,1707688247081,-500.0,0.00019988,2]
[313763600,1707688247090,-500.0,0.00019988,2]
[313763601,1707688247099,-500.0,0.00019988,2]
[313763602,1707688247108,-500.0,0.00019988,2]
[313763603,1707688247117,-618.97,0.00019988,2]
[313763604,1707688247126,-500.0,0.00019988,2]
[313763605,1707688247136,-500.0,0.00019988,2]
[313763606,1707688247145,-500.0,0.00019988,2]
[313763607,1707688247154,-500.0,0.00019988,2]
[313763608,1707688247162,-500.0,0.00019988,2]
[313763609,1707688247171,-500.0,0.00019988,2]
[313763610,1707688247181,-6304.53229004,0.0002,2]
[313763611,1707688247191,-324.25284351,0.0002,2]
[313763612,1707688247199,-52893.62624582,0.0002,2]
[313763613,1707688247208,-1201.66555398,0.0002,2]
[313763614,1707688247217,-385.14380025,0.00020254,2]
[313763615,1707688247226,-500.0,0.00020254,2]
[313763616,1707688247235,-1228.71,0.00020254,2]
[313763617,1707688247244,-1890.74,0.00020254,2]
[313763618,1707688247253,-500.0,0.00020254,2]
[313763619,1707688247262,-500.0,0.00020254,2]
[313763620,1707688247271,-500.0,0.00020254,2]
[313763621,1707688247279,-1676.97,0.00020254,2]
[313763622,1707688247289,-500.0,0.00020254,2]
[313763623,1707688247298,-5450.19,0.00020254,2]
[313763624,1707688247307,-500.0,0.00020254,2]
[313763625,1707688247316,-500.0,0.00020254,2]
[313763626,1707688247325,-2379.26,0.00020254,2]
[313763627,1707688247334,-500.0,0.00020254,2]
[313763628,1707688247343,-4034.49,0.00020254,2]
[313763629,1707688247352,-500.0,0.00020254,2]
[313763630,1707688247361,-1859.28,0.00020254,2]
[313763631,1707688247370,-500.0,0.00020254,2]
[313763632,1707688247379,-500.0,0.00020256,2]
[313763633,1707688247388,-329.68,0.00020256,2]
[313763634,1707688247397,-500.0,0.00020256,2]
[313763635,1707688247406,-500.0,0.00020256,2]
[313763636,1707688247415,-500.0,0.00020256,2]
[313763637,1707688247424,-240.6,0.00020256,2]
[313763638,1707688247434,-1926.15,0.00020256,2]
[313763639,1707688247443,-500.0,0.00020256,2]
[313763640,1707688247453,-564.87,0.00020256,2]
[313763641,1707688247463,-500.0,0.00020258,2]
[313763642,1707688247474,-500.0,0.00020258,2]
[313763643,1707688247483,-274.26,0.00020262,2]
[313763644,1707688247493,-500.0,0.00020262,2]
[313763645,1707688247503,-2158.94292531,0.0002048,2]
[313763646,1707688247512,-6440.98078133,0.0002048,2]
[313763647,1707688247522,-25506.02684706,0.0002048,2]
[313763648,1707688247530,-5000.0,0.0002048,2]
[313763649,1707688247541,-5000.0,0.0002048,2]
[313763650,1707688247551,-1562.19731933,0.0002048,2]
[313763651,1707688247560,-2615.65278958,0.0002048,2]
[313763652,1707688247570,-500.0,0.00020528,2]
[313763653,1707688247579,-1228.71,0.00020528,2]
[313763654,1707688247588,-1890.74,0.00020528,2]
[313763655,1707688247597,-500.0,0.00020528,2]
[313763656,1707688247606,-404.03,0.00020528,2]
[313763657,1707688247616,-500.0,0.00020528,2]
[313763658,1707688247625,-1676.97,0.00020528,2]
[313763659,1707688247634,-543.27,0.00020528,2]
[313763660,1707688247643,-5450.19,0.00020528,2]
[313763661,1707688247652,-500.0,0.00020528,2]
[313763662,1707688247662,-500.0,0.00020528,2]
[313763663,1707688247671,-2379.26,0.00020528,2]
[313763664,1707688247681,-500.0,0.00020528,2]
[313763665,1707688247690,-4034.49,0.00020528,2]
[313763666,1707688247699,-607.0,0.00020528,2]
[313763667,1707688247708,-1859.28,0.00020528,2]
[313763668,1707688247718,-554.54,0.00020528,2]
[313763669,1707688247728,-500.0,0.0002053,2]
[313763670,1707688247737,-500.0,0.0002053,2]
[313763671,1707688247747,-500.0,0.0002053,2]
[313763672,1707688247756,-500.0,0.0002053,2]
[313763673,1707688247765,-1926.15,0.0002053,2]
[313763674,1707688247774,-500.0,0.0002053,2]